Cogmind - Beta 11.1 @@@ ROGUE MODE // 2022.08.01 @ 22:49:36 Player: NoNeedToExplain Result: Destroyed by G-34 Mercenary with Small Laser Performance ------------- Evolutions (0) 0 Regions Visited (4) 800 Robots Destroyed (22) 110 Value Destroyed (371) 371 Prototype IDs (0) 0 Alien Tech Used (0) 0 Bonus (155) 155 TOTAL SCORE: 1436 Bonus ------- Follower Combat Kills 172 Friendly Fire -17 Cogmind --------- Core Integrity 0/250 Matter 300/300 Energy 100/100 System Corruption 0% Temperature Cool (6) Movement Walking (120) Location -9/Mines Parts ------- > --- POWER (1) -------- (None) > --- PROPULSION (2) --- Aluminum Leg > --- UTILITY (2) ------ (None) > --- WEAPON (2) ------- (None) > --- INVENTORY (5) ---- Improved Heat Sink Huge Storage Unit Signal Interpreter Makeshift Transmission Jammer Autogun Peak State ------------ > --- POWER ------------ Makeshift Power Source > --- PROPULSION ------- Wheel Wheel > --- UTILITY ---------- Huge Storage Unit Targeting Computer > --- WEAPON ----------- Heavy Assault Rifle Heavy Assault Rifle > --- INVENTORY -------- Ion Engine Light Nuclear Core Light Treads Aluminum Leg Aluminum Leg Wheel Wheel Improved Heat Sink Improved Heat Sink High-capacity Storage Unit Medium Matter Pod Sensor Array Signal Interpreter Signal Interpreter Transport Network Coupler Makeshift Transmission Jammer Utility Shielding High-powered Tractor Beam Medium Laser Small Laser Heavy Assault Rifle Autogun Autogun Grenade Launcher Mining Claw [Rating: 15] Favorites ----------- Power Ion Engine Engine Ion Engine Propulsion Wheel Treads Light Treads Leg Aluminum Leg Wheel Wheel Utility Huge Storage Unit Device Terrain Scanner Storage Huge Storage Unit Processor Targeting Computer Weapon Heavy Assault Rifle Energy Gun Small Laser Ballistic Gun Heavy Assault Rifle Launcher Grenade Launcher Build | -11 -10 -10 -10 -9 ------- Run | Scr Mat Min Exi Min Slots Evolved . | . . . . . Power . | . . . . . Propulsion . | . . . . . Utility . | . . . . . Weapon . | . . . . . Parts Attached 31 | 7 20 1 1 2 Power 3 | 1 1 . 1 . Engine 3 | 1 1 . 1 . Core . | . . . . . Reactor . | . . . . . Propulsion 8 | 2 5 . . 1 Treads 1 | . 1 . . . Leg 1 | . . . . 1 Wheel 6 | 2 4 . . . Hover . | . . . . . Flight . | . . . . . Utility 6 | 1 5 . . . Device 1 | . 1 . . . Storage 4 | 1 3 . . . Processor 1 | . 1 . . . Hackware . | . . . . . Protection . | . . . . . Artifact . | . . . . . Weapon 14 | 3 9 1 . 1 Energy Gun 2 | 2 . . . . Energy Cannon . | . . . . . Ballistic Gun 8 | 1 6 1 . . Ballistic Cannon . | . . . . . Launcher 4 | . 3 . . 1 Special Weapon . | . . . . . Impact Weapon . | . . . . . Slashing Weapon . | . . . . . Piercing Weapon . | . . . . . Special Melee Weapon . | . . . . . Unidentified Prototypes . | . . . . . Parts Lost 7 | . 4 1 . 2 Power 1 | . 1 . . . Propulsion 3 | . 2 . . 1 Utility 1 | . 1 . . . Weapon 2 | . . 1 . 1 Highest Loss Streak 2 | . 2 1 . 2 To Critical Strikes . | . . . . . Average Slot Usage (%) 98 | . 99 100 100 78 Engine 13 | . 14 14 14 10 Wheel 27 | . 27 28 28 21 Device 4 | . 12 . . . Storage 13 | . 14 14 14 10 Processor 9 | . 1 14 14 10 Ballistic Gun 26 | . 25 28 28 21 Naked Turns 1 | . . . . 1 Heaviest Build 92 | 11 92 91 91 90 Greatest Support 20 | 20 20 20 20 20 Greatest Overweight (x) 8 | 1 4 4 4 8 Average Overweight (x) 2 | . 1 4 4 3 Largest Inventory Capacity 25 | 8 25 25 25 25 Average Capacity 20 | 7 14 25 25 20 Most Carried 25 | 6 18 24 25 25 Average Carried 18 | 2 11 22 24 20 Final Capacity 25 | 8 25 25 25 5 Final Carried 25 | 6 18 24 25 5 Class Distribution -------------------- 71% | Mutant 28% | Commander-Mutant Dominant Class ---------------- Mutant | -10/Materials Mutant | -10/Mines Commander-Mutant | -10/Exiles Commander-Mutant | -9/Mines Resources | -11 -10 -10 -10 -9 ----------- Run | Scr Mat Min Exi Min Matter Collected 853 | 185 429 229 . 10 Remotely . | . . . . . Salvage Created 605 | . 463 130 . 12 Parts 38 | . 34 4 . . Haulers Intercepted 2 | . 2 . . . Recyclers Shooed 2 | . 1 . . 1 Parts Field Recycled . | . . . . . Retrieved Matter . | . . . . . Parts Self-Destructed . | . . . . . Prevented . | . . . . . Kills | -11 -10 -10 -10 -9 ------- Run | Scr Mat Min Exi Min Combat Hostiles Destroyed 16 | . 12 3 . 1 Guns 7 | . 4 3 . . AOE 9 | . 8 . . 1 Classes Destroyed 7 | . 6 . . 1 Worker 2 | . 2 . . . Hauler 2 | . 2 . . . Recycler 2 | . 2 . . . Watcher 1 | . 1 . . . Swarmer 9 | . 9 . . . Grunt 6 | . 3 3 . . Assembled 1 | . . . . 1 Best Kill Streak 4 | . 4 2 . 1 Combat Bots Only 3 | . 3 2 . 1 Max Kills in Single Turn 2 | . 2 1 . 1 Gunslinging . | . . . . . Exploded 2 | . 2 . . 1 Melee . | . . . . . Uniques/NPCs Destroyed . | . . . . . Combat | -11 -10 -10 -10 -9 -------- Run | Scr Mat Min Exi Min Damage Taken 986 | . 458 242 . 286 Core 254 | . 105 15 . 134 Absorbed by Shields . | . . . . . Core Remaining (%) 100 | 100 . . . . Volleys Fired 43 | . 31 11 . 1 Largest 2 | . 2 2 . 1 Hottest 46 | . 46 46 . 30 Shots Fired 79 | . 56 22 . 1 Gun 72 | . 50 22 . . Cannon . | . . . . . Launcher 7 | . 6 . . 1 Special . | . . . . . Kinetic 72 | . 50 22 . . Thermal . | . . . . . Explosive 7 | . 6 . . 1 Electromagnetic . | . . . . . Robot Hit Streak 10 | . 10 5 . 4 Robot Miss Streak 4 | . 4 2 . . Penetration Max . | . . . . . Secondary Targets . | . . . . . Shots Hit Robots 44 | . 30 13 . 1 Core Hits 34 | . 25 4 . 5 Critical Kills 1 | . 1 . . . Critical Parts Destroyed . | . . . . . Critical Strikes 1 | . 1 . . . Destroy 1 | . 1 . . . Melee Attacks . | . . . . . Impact . | . . . . . Slashing . | . . . . . Piercing . | . . . . . Sneak Attacks . | . . . . . Combat Hostiles . | . . . . . Follow-up Attacks . | . . . . . Damage Inflicted 1352 | . 1007 239 . 106 Guns 637 | . 398 239 . . Cannons . | . . . . . Explosions 709 | . 609 . . 100 Melee . | . . . . . Ramming 6 | . . . . 6 Kinetic 637 | . 398 239 . . Thermal . | . . . . . Explosive 709 | . 609 . . 100 Electromagnetic . | . . . . . Impact . | . . . . . Slashing . | . . . . . Piercing . | . . . . . Highest Corruption . | . . . . . Average Corruption . | . . . . . Corruption Purged . | . . . . . Corruption Blocked . | . . . . . Overload Shots . | . . . . . Overflow Damage 41 | . 41 . . . Projectiles . | . . . . . Explosions 41 | . 41 . . . Melee . | . . . . . Knockbacks . | . . . . . Impact . | . . . . . Kinetic . | . . . . . Secondary . | . . . . . Self-Inflicted Damage 195 | . 180 . . 15 Shots 5 | . 4 . . 1 Rammed . | . . . . . Targets Rammed 12 | . . . . 12 Kicked 12 | . . . . 12 Crushed . | . . . . . Highest Temperature 25 | . 7 25 . . Average Temperature 5 | . 2 11 . . Received Heat Transfer 189 | . 42 135 . 12 Siege Activations . | . . . . . Robots Corrupted . | . . . . . Combat Hostiles . | . . . . . Parts Fried . | . . . . . Impact Corruptions . | . . . . . Robots Melted . | . . . . . Combat Hostiles . | . . . . . Parts Melted . | . . . . . Heat Transferred . | . . . . . Parts Sabotaged . | . . . . . Parts Stolen . | . . . . . Parts Stripped . | . . . . . Power Chain Reactions . | . . . . . Missiles Intercepted . | . . . . . Alert | -11 -10 -10 -10 -9 ------- Run | Scr Mat Min Exi Min Peak Influence 372 | . 372 242 . 61 Initial 144 | . . 144 . . Average 179 | . 247 146 . 32 Maximum Alert Level 1 | . 1 1 . . Low Security (%) 53 | 100 28 70 . 100 Level 1 46 | . 71 29 . . Level 2 . | . . . . . Level 3 . | . . . . . Level 4 . | . . . . . Level 5 . | . . . . . High Security . | . . . . . Max Security . | . . . . . Squads Dispatched 2 | . 1 . . 1 Investigation . | . . . . . Extermination . | . . . . . Reinforcement 2 | . 1 . . 1 Assault . | . . . . . Garrison . | . . . . . Intercept . | . . . . . Searches Triggered . | . . . . . Construction Impeded 1 | . . . . 1 Haulers Reinforced . | . . . . . Active Scanning Responses . | . . . . . Cargo Convoy Interrupts . | . . . . . Stealth | -11 -10 -10 -10 -9 --------- Run | Scr Mat Min Exi Min Distress Signals 2 | . . . . 2 Communications Jammed . | . . . . . Distress Signals . | . . . . . Times Spotted 41 | . 17 6 . 18 Peak Tracking Total 13 | . 3 2 . 13 Tactical Retreats 1 | . . . . 1 Traps | -11 -10 -10 -10 -9 ------- Run | Scr Mat Min Exi Min Traps Triggered 1 | . 1 . . . Indirectly . | . . . . . Trap Hack Attempts . | . . . . . Triggered . | . . . . . Disarmed . | . . . . . Reprogrammed . | . . . . . Reused . | . . . . . Traps Extracted . | . . . . . Installed . | . . . . . Triggered . | . . . . . Machines | -11 -10 -10 -10 -9 ---------- Run | Scr Mat Min Exi Min Machines Disabled 3 | . 3 . . . Max in Single Turn 1 | . 1 . . . Machines Sabotaged . | . . . . . Garrisons Compromised . | . . . . . Overloaded Fab Kills . | . . . . . Hacking | -11 -10 -10 -10 -9 --------- Run | Scr Mat Min Exi Min Machines Accessed 8 | . 7 . 1 . Terminals 6 | . 6 . . . Fabricators . | . . . . . Repair Stations . | . . . . . Recycling Units 1 | . 1 . . . Scanalyzers . | . . . . . Garrison Access . | . . . . . Total Hacks 20 | . 16 . 4 . Successful 11 | . 7 . 4 . Failed 8 | . 8 . . . Catastrophic 3 | . 3 . . . Database Lockouts 1 | . 1 . . . Manual 13 | . 13 . . . Terminals 14 | . 14 . . . Fabricators . | . . . . . Repair Stations . | . . . . . Recycling Units 2 | . 2 . . . Scanalyzers . | . . . . . Garrison Access . | . . . . . Terminal Hacks 7 | . 3 . 4 . Record 4 | . . . 4 . Part Schematic 1 | . 1 . . . Branch Access Points 1 | . 1 . . . Terminal Index 1 | . 1 . . . Fabricator Hacks . | . . . . . Repair Station Hacks . | . . . . . Recycling Unit Hacks 1 | . 1 . . . Retrieve Matter 1 | . 1 . . . Scanalyzer . | . . . . . Garrison Access Hacks . | . . . . . Unauthorized Hacks 3 | . 3 . . . Terminals 3 | . 3 . . . Botnet 3 | . 3 . . . Fabricators . | . . . . . Repair Stations . | . . . . . Recycling Units . | . . . . . Scanalyzers . | . . . . . Garrison Access . | . . . . . Data Cores Recovered . | . . . . . Used . | . . . . . Hacking Detections 6 | . 6 . . . Full Trace Events . | . . . . . Feedback Events . | . . . . . Feedback Blocked . | . . . . . Robot Schematics Acquired . | . . . . . Robots Built . | . . . . . Authchips . | . . . . . Time . | . . . . . Total Robot Build Rating . | . . . . . Part Schematics Acquired 1 | . 1 . . . Parts Built . | . . . . . Authchips . | . . . . . Time . | . . . . . Total Part Build Rating . | . . . . . Parts Repaired . | . . . . . Time . | . . . . . Parts Recycled . | . . . . . Recycled Matter . | . . . . . Retrieved Matter . | . . . . . Retrieved Components . | . . . . . Parts Scanalyzed . | . . . . . Part Schematics Acquired . | . . . . . Parts Damaged . | . . . . . Bothacking | -11 -10 -10 -10 -9 ------------ Run | Scr Mat Min Exi Min Used RIF Installer . | . . . . . Robots Hacked . | . . . . . Non-combat . | . . . . . Combat . | . . . . . Robot Hacks Applied . | . . . . . Relay Couplers Released . | . . . . . Fabnet Peak Effective % . | . . . . . Robots Rewired 3 | . . . 3 . Allies Hacked . | . . . . . Hacks Repelled . | . . . . . Allies | -11 -10 -10 -10 -9 -------- Run | Scr Mat Min Exi Min Total Allies 6 | . . 3 3 . Largest Group 6 | . . 3 6 6 Highest-Rated Group 64 | . . 40 64 64 Highest-Rated Ally 16 | . . 16 16 16 Total Orders . | . . . . . Ally Attacks 40 | . . 17 . 23 Total Damage 441 | . . 166 . 275 Kills 7 | . . 3 . 4 Allies Corrupted . | . . . . . Allies Melted . | . . . . . Intel | -11 -10 -10 -10 -9 ------- Run | Scr Mat Min Exi Min Robot Analysis Total . | . . . . . Derelict Logs Recovered 1 | . . 1 . . Drone Launches . | . . . . . Drone Recoveries . | . . . . . Exploration | -11 -10 -10 -10 -9 ------------- Run | Scr Mat Min Exi Min Turns Passed 2287 | 58 785 706 612 126 Spaces Moved 1664 | 52 655 463 408 86 Core 22 | 3 . . . 19 Treads . | . . . . . Legs 4 | . . . . 4 Wheels 1638 | 49 655 463 408 63 Hover . | . . . . . Flight . | . . . . . Fastest Speed 50 | 50 80 140 140 50 Average Speed 119 | 80 96 140 140 120 Slowest Speed 200 | 100 140 140 140 200 Overloaded Moves . | . . . . . Propulsion Burnouts . | . . . . . Robots Hopped . | . . . . . Cave-ins Triggered . | . . . . . Exploration Rate (%) 59 | 3 92 81 90 30 Regions Visited 4 Branch Regions 3 Pre-discovered Areas 2 | . . 1 1 . Known Exits Taken 1 | . 1 . . . Unknown Exits Taken 3 | 1 . 1 1 . Scrap Searched 1 | . . 1 . . Spaces Dug . | . . . . . Terrain Destroyed 44 | . 37 . . 7 Melee . | . . . . . Projectile . | . . . . . AOE 44 | . 37 . . 7 Terrain Rammed . | . . . . . Walls Destroyed . | . . . . . Machines Disabled . | . . . . . Actions | -11 -10 -10 -10 -9 --------- Run | Scr Mat Min Exi Min Total 1876 | 64 759 499 449 105 Wait 43 | . 18 18 6 1 Move 1660 | 51 654 462 407 86 Hop . | . . . . . Pick Up 37 | 6 21 7 1 2 Fast Attach 12 | 6 5 . 1 . Attach 6 | . 4 1 . 1 Detach 1 | . 1 . . . Swap 13 | 1 11 . . 1 Drop 16 | . 14 . 1 1 Fire 43 | . 31 11 . 1 Melee . | . . . . . Ram . | . . . . . Kick 12 | . . . . 12 Crush . | . . . . . Escape Stasis . | . . . . . Rewire 33 | . . . 33 . Trap . | . . . . . Miscellaneous . | . . . . . Route ------- -11/Scrapyard -10/Materials (discovered 4 exits: [*Mat x3] / *Min) -10/Mines (discovered 3 exits: [*Mat x2] / *Exi) -10/Exiles (discovered 2 exits: [*Min x2]) -9/Mines History --------- Turn | Location | Event 23 | -11/Scrapyard | Discovered new exit (range 15) 59 | -11/Scrapyard | Entered Materials 154 | -10/Materials | Central database locked down 208 | -10/Materials | Discovered new exit (range 12) 281 | -10/Materials | Identified exit to Mines 304 | -10/Materials | Build established: Mutant 380 | -10/Materials | Discovered new exit (range 15) 541 | -10/Materials | Discovered new exit (range 12) 844 | -10/Materials | Entered Mines 913 | -10/Mines | Assisted by bots powering up and referring to "LRC-V3" 959 | -10/Mines | Learned location of Zion (-7) 1022 | -10/Mines | Discovered new exit (range 13) 1127 | -10/Mines | Discovered new exit (range 9) 1202 | -10/Mines | Deemed a non-threat by the Exiles lab entrance 1202 | -10/Mines | Discovered new exit (range 5) 1550 | -10/Mines | Entered Exiles 1550 | -10/Exiles | Found Exiles lab destroyed 1550 | -10/Exiles | Accompanied by 3 allies 1569 | -10/Exiles | Discovered new exit (range 15) 1890 | -10/Exiles | Build established: Commander-Mutant 2145 | -10/Exiles | Discovered new exit (range 10) 2162 | -10/Exiles | Entered Mines 2162 | -9/Mines | Accompanied by 6 allies 2236 | -9/Mines | Assembled infested the area 2257 | -9/Mines | Core integrity fell below 50% 2258 | -9/Mines | Released all parts (5) 2265 | -9/Mines | Core integrity fell below 20% 2288 | -9/Mines | Destroyed by G-34 Mercenary with Small Laser Last Messages --------------- 02258_ Released Targeting Computer. 02258_ Released Mak. Power Source. 02258_ Knocked back. 02260_ Acquired Huge Storage Unit. 02262_ as-16960 destroyed. 02264_ Core Extractor disabled. 02265_ K-01 Serf collects debris. 02267_ as-82471 sneak attacks. 02267_ K-01 Serf system corrupted by crushing effect. 02269_ Kicked U-05 Engineer. 02270_ ALERT: Construction progress impeded, dispatching reinforcements to local area. 02270_ U-05 Engineer sends out distress signal. 02272_ Kicked R-06 Scavenger. 02272_ R-06 Scavenger sends out distress signal. 02273_ Kicked R-06 Scavenger. 02277_ Kicked B-36 Bruiser. 02281_ as-34892 destroyed. 02281_ Kicked B-36 Bruiser. 02286_ B-36 Bruiser destroyed. Map ----- +----------------------------------------------------+ | | | | | | | ?????????????????????????????????????????????????? | | ?????????????????????????????????????????????????? | | ?????????????????????????????????????????????????? | | ?????????????????????????????????????????????????? | | ?????????????????????????????????????????????????? | | ?????????????????????????????????????????????????? | | ?????????????????????????????????????????????????? | | ?????????????????????????#???????????????????????? | | ????????????????????????? ???????????????????????? | | ????????????????????????? ???????????????????????? | | ????????????????????????? ???????????????????????? | | ????????????????????????? ???????????????????????? | | ?????????????????????????k???????????????????????? | | ????????????????????????# #??????????????????????? | | ????????????????????????#$#??????????????????????? | | ???????????????????????? #??????????????????????? | | ????????????????????????#t#??????#???????????????? | | ????????????????????????#!#?????? ????????????? | | ????????????????????????#%#?????? ????? ???????? | | ????????????????????????#%#????? ??? ?????? | | ????????????????????????#g#????? ???? ##?#?? | | ????????????????????????#%####?? ???? ## | | ????????????????????????#@aa%#?? #???? | | ????????????????????????####a#?# #???? ? | | ???????????????????????????# #?# #???? ?? | | ?????????????????????????### #?# #???? #??? | | ????????????????????????## ### ##??? #???? | | ???????????????????????## ## ##??# #????? | | ??????????????????????## #?## #????? | | ??????????????????????# """ #?# ##???? | | ?????????????????????# ## "" #?# #???? | | ?????????????????????# #?## """ ### #???? | | ?????????????????????## #???# #????? | | ??????????????????????###???## #### ####????? | | ???????????????????????????## ##??# #???????? | | ??????????????????????????##* ##???# #???????? | | ??????????????????????????#/*! ##????# ##??????? | | ??????????????????????????#!=!!##???### ##?????? | | ??????????????????????????#==[##???## ##????? | | ??????????????????????????#%[##????# ###??? | | ???????????????????????####![#?????# ##?? | | ???????????????????????# [[=!#?????## * #?? | | ????????# ?????????### %/!!##?????## *%######?? | | ????????# ??????## [= #??????###=[#??????? | | ?????????# ##### #????????#!%#??????? | | ????????## =%[% ##????????#%*#??????? | | ????????# [%% ##????????##![####???? | +----------------------------------------------------+ Best States ------------- Heat Dissipation 25 Energy Generation 15 Energy Capacity 250 Matter Stores 300 Matter Capacity 300 Sight Range 16 Terrain Scan Range 14 Terrain Scan Density 10 Evasion (%) 50 Targeting Accuracy 5 Item Schematics ----------------- Hcp. Storage Unit | -10/Materials | Hacked Robot Schematics ------------------ None Fabricated ------------ Nothing Alien Tech Used ----------------- None Achievements -------------- None Challenges ------------ None Game ------ Seed DroneBoreMachine Manual? 0 Play Time 00:25:01 Cumulative 115.2 hours Start 2022.07.30 @ 20:17:00 End 2022.08.01 @ 22:49:36 Sessions 3 Manual Loads 0 Difficulty Rogue Special Mode None Game No. 62 Rogue 62 Adventurer 0 Explorer 0 Win Type - Total 6 Types 6/0/0/0/0/0/0/0/0 Lore% 51 Gallery% 64 Achievement% 55 Wizard Run 0 Options --------- ASCII 0 Keyboard 0 Movement Numpad Keybinds 0 Fullscreen 2 Font 24/Smallcaps Map View 76x50 Tactical HUD 1 Map Filters NONE Filters NONE Steam 1 RUN: 62e02f2d-8500-465c-9d8a-aa932fe6ef88